bitfinex-derivatives/quotes_BTCF0:USTF0_20250209
["timestamp","ask_amount","ask_price","bid_price","bid_amount"]
[1739072687138,0.00131411,97272.0,97264.0,0.36892351]
[1739072687627,0.00131411,97272.0,97264.0,1.41132217]
[1739072687933,0.12942185,97280.0,97264.0,1.41132217]
[1739072688127,0.09752185,97274.0,97264.0,1.41332217]
[1739072688439,0.2055905,97267.0,97264.0,1.04439866]
[1739072688641,0.2055929,97265.0,97264.0,0.91800294]
[1739072688824,0.21,97265.0,97264.0,0.004]
[1739072689028,0.21,97265.0,97257.0,0.43028931]
[1739072689029,0.2056077,97258.0,97257.0,0.43028931]
[1739072689238,0.35035431,97259.0,97257.0,0.42896931]
[1739072689732,0.2056077,97258.0,97257.0,0.42896931]
[1739072690144,0.8664077,97258.0,97257.0,0.42896931]
[1739072690338,0.8664077,97258.0,97257.0,0.57228116]
[1739072690928,0.3608,97258.0,97257.0,0.57228116]
[1739072691128,0.09752185,97267.0,97257.0,0.57228116]
[1739072691329,0.3608,97287.0,97264.0,0.3608]
[1739072691330,0.09752185,97280.0,97264.0,0.3608]
[1739072691538,0.3608,97287.0,97273.0,0.3608]
[1739072691737,0.09752185,97283.0,97273.0,0.3608]
[1739072692628,0.00131618,97278.0,97273.0,0.3608]
[1739072693735,0.00131618,97276.0,97273.0,0.3608]
[1739072694935,0.00131618,97275.0,97273.0,0.3608]
[1739072695130,0.07171618,97275.0,97272.0,0.36305958]
[1739072695338,0.47171618,97275.0,97273.0,0.006]
[1739072695640,0.07171618,97275.0,97273.0,0.006]
[1739072695841,0.00131618,97274.0,97273.0,0.006]
[1739072696033,0.00131618,97274.0,97273.0,0.009]
[1739072696440,0.00131618,97274.0,97272.0,0.28620712]
[1739072696832,0.00131618,97273.0,97272.0,0.28620712]
[1739072698435,0.00263215,97273.0,97272.0,0.28620712]
[1739072698934,0.00263215,97273.0,97267.0,0.0317]
[1739072699135,0.05263215,97273.0,97272.0,0.003]
[1739072699338,0.04263215,97273.0,97272.0,0.003]
[1739072699537,0.04363215,97273.0,97272.0,0.003]
[1739072699736,0.04363215,97273.0,97266.0,0.36305958]
[1739072699931,0.04363215,97273.0,97272.0,0.004]
[1739072700329,0.00363215,97273.0,97272.0,0.004]
[1739072700531,0.00463215,97273.0,97272.0,0.004]
[1739072700731,0.01282306,97273.0,97272.0,0.004]
[1739072701553,0.1,97273.0,97267.0,0.36305958]
[1739072701739,0.566367,97278.0,97272.0,0.002]
[1739072701934,0.666367,97278.0,97272.0,0.002]
[1739072702133,0.0081051,97278.0,97272.0,0.002]
[1739072702442,0.09752185,97282.0,97271.0,0.3608]
[1739072702635,0.20594544,97282.0,97272.0,0.0338]
[1739072702831,0.10594544,97282.0,97272.0,0.0338]
[1739072703142,0.001,97278.0,97272.0,0.0338]
[1739072703941,0.001,97278.0,97277.0,0.30408377]
[1739072704135,0.001,97282.0,97277.0,0.30408377]
[1739072705532,0.001,97282.0,97277.0,0.30608377]
[1739072705732,0.00836831,97285.0,97277.0,0.30608377]
[1739072705929,0.09752185,97290.0,97278.0,1.04214002]
[1739072706443,0.32752185,97290.0,97278.0,1.04214002]
[1739072707151,0.3356286,97290.0,97279.0,0.3608]
[1739072707839,0.1956286,97290.0,97279.0,0.394]
[1739072708042,0.1056286,97290.0,97279.0,0.394]
[1739072708246,0.2056286,97290.0,97279.0,0.394]
[1739072708743,0.2066286,97290.0,97279.0,0.394]
[1739072709436,0.57095045,97290.0,97279.0,0.001]
[1739072709636,0.2055612,97281.0,97279.0,0.001]
[1739072709842,0.4455612,97281.0,97279.0,0.001]
[1739072710045,0.4765612,97281.0,97279.0,0.001]
[1739072710646,0.7765612,97281.0,97280.0,1.04214002]
[1739072710854,1.1373612,97281.0,97280.0,1.04214002]
[1739072711046,1.1373612,97281.0,97280.0,0.75666722]
[1739072711738,1.1373612,97281.0,97280.0,0.60602742]
[1739072712039,1.1373612,97281.0,97280.0,0.47937632]
[1739072712244,1.1373612,97281.0,97280.0,0.43395723]
[1739072712438,1.1373612,97281.0,97280.0,0.27363094]
[1739072712642,1.1423612,97281.0,97280.0,0.25511006]
[1739072713039,1.1413612,97281.0,97280.0,0.25511006]
[1739072713244,1.1423612,97281.0,97280.0,0.25511006]
[1739072713854,0.8423612,97281.0,97280.0,0.25511006]
[1739072714254,0.8423612,97281.0,97274.0,0.00015419]
[1739072714255,0.2055718,97275.0,97274.0,0.00015419]
[1739072714555,0.6663718,97275.0,97274.0,0.00015419]
[1739072715350,0.6703718,97275.0,97274.0,0.00015419]
[1739072715548,0.5703718,97275.0,97274.0,0.00015419]
[1739072715849,0.5693718,97275.0,97274.0,0.00015419]
[1739072716045,0.5703718,97275.0,97274.0,0.00015419]
[1739072716356,1.2411718,97275.0,97274.0,0.00015419]
[1739072716859,1.2421718,97275.0,97274.0,0.00015419]
[1739072717046,1.2421718,97275.0,97244.0,0.21522785]
[1739072717047,1.2568,97275.0,97244.0,0.21522785]
[1739072717240,0.09752185,97254.0,97244.0,0.18302785]
[1739072717442,0.3608,97250.0,97244.0,0.18302785]
[1739072717654,0.5708,97250.0,97244.0,0.18302785]
[1739072717854,0.2056352,97245.0,97244.0,0.18302785]
[1739072718156,0.2956352,97245.0,97244.0,0.18302785]
[1739072718351,0.5956352,97245.0,97244.0,0.18302785]
[1739072718549,0.5056352,97245.0,97244.0,0.18302785]
[1739072718742,0.6056352,97245.0,97244.0,0.18802785]
[1739072719059,0.6056352,97245.0,97244.0,0.09579835]
[1739072719245,0.20565,97238.0,97237.0,0.24103714]
[1739072719454,0.77645,97238.0,97237.0,0.1987683]
[1739072719651,1.07645,97238.0,97237.0,0.1987683]
[1739072719861,1.07645,97238.0,97237.0,0.1736383]
[1739072720064,1.07645,97238.0,97237.0,0.1313763]
[1739072720355,1.07645,97238.0,97237.0,0.11569519]
[1739072720555,1.07645,97238.0,97237.0,0.09819547]
[1739072720753,0.7108,97238.0,97237.0,0.001]
[1739072720949,0.2057064,97212.0,97209.0,0.33779419]
[1739072721152,0.3608,97213.0,97192.0,0.30504642]
[1739072721351,0.2057437,97194.0,97192.0,0.30504642]
[1739072721850,0.3608,97200.0,97192.0,0.30504642]
[1739072721851,0.2057359,97198.0,97192.0,0.30504642]
[1739072722054,0.2057107,97210.0,97196.0,0.3608]
[1739072722251,0.00015428,97203.0,97196.0,0.3608]
[1739072723356,0.00115428,97203.0,97196.0,0.3668]
[1739072724249,0.00115428,97203.0,97196.0,0.7276]
[1739072724456,0.00115428,97203.0,97196.0,0.7306]
[1739072724655,0.3608,97243.0,97196.0,0.7306]
[1739072724850,0.0096764,97233.0,97224.0,0.3608]
[1739072725047,0.00154375,97233.0,97232.0,0.3608]
[1739072726366,0.00015415,97242.0,97232.0,0.3608]
[1739072726667,0.00015415,97242.0,97241.0,0.3608]
[1739072727463,0.23015415,97242.0,97241.0,0.3608]
[1739072727670,0.00015415,97242.0,97241.0,0.3608]
[1739072728676,0.00115415,97242.0,97241.0,0.3608]
[1739072728961,0.00215415,97242.0,97241.0,0.3608]
[1739072729374,0.00115415,97242.0,97241.0,0.3608]
[1739072729567,0.43679565,97242.0,97241.0,0.001]
[1739072730261,0.43679565,97242.0,97233.0,0.0305]
[1739072730567,0.43679565,97242.0,97241.0,0.004]
[1739072731068,0.00115415,97242.0,97241.0,0.004]
[1739072731264,0.00015415,97242.0,97241.0,0.004]
[1739072731460,0.00015415,97242.0,97241.0,0.005]
[1739072731768,0.90537353,97257.0,97241.0,0.004]
[1739072731967,0.90537353,97257.0,97254.0,0.3608]
[1739072732162,0.90537353,97257.0,97255.0,0.0303]
[1739072733061,0.21369353,97257.0,97255.0,0.0303]
[1739072733261,0.2056107,97257.0,97255.0,0.0303]
[1739072733772,0.2076107,97257.0,97255.0,0.0303]
[1739072734268,0.002,97257.0,97255.0,0.0303]
[1739072734473,0.002,97257.0,97256.0,0.0318]
[1739072734861,0.002,97257.0,97256.0,0.0638]
[1739072735058,0.003,97257.0,97256.0,0.0638]
[1739072735265,0.004,97257.0,97256.0,0.0638]
[1739072735968,0.003,97257.0,97256.0,0.0678]
[1739072736875,0.004,97257.0,97256.0,0.0698]
[1739072738071,0.20712597,97270.0,97256.0,0.0698]
[1739072738273,0.20712597,97270.0,97267.0,0.3608]
[1739072739471,0.20712597,97270.0,97267.0,0.3618]
[1739072739875,0.20712597,97270.0,97267.0,0.3658]
[1739072740668,0.20712597,97270.0,97267.0,0.3668]
[1739072741076,4.759e-05,97269.0,97267.0,0.3668]
[1739072741276,4.759e-05,97269.0,97267.0,0.3678]
[1739072742374,4.759e-05,97269.0,97267.0,0.3688]
[1739072743079,4.759e-05,97269.0,97267.0,0.3658]
[1739072743583,4.759e-05,97269.0,97267.0,0.3608]
[1739072743768,4.759e-05,97269.0,97267.0,0.3638]
[1739072743972,0.20563369,97269.0,97267.0,0.3638]
[1739072745383,0.20563369,97269.0,97267.0,0.3608]
[1739072745584,0.20563369,97269.0,97267.0,0.3638]
[1739072747585,0.20663369,97269.0,97267.0,0.3638]
[1739072748284,0.20663369,97269.0,97267.0,0.3628]
[1739072748481,0.20563369,97269.0,97267.0,0.3628]
[1739072748680,4.759e-05,97269.0,97267.0,0.3628]
[1739072748887,0.19803307,97289.0,97268.0,0.2055866]
[1739072749083,0.19803307,97289.0,97280.0,0.3608]
[1739072749290,0.09749264,97290.0,97281.0,0.0641]
[1739072749884,0.09749264,97290.0,97281.0,0.033]
[1739072750081,0.004,97289.0,97280.0,0.3608]
[1739072750286,0.2055541,97284.0,97280.0,0.3608]
[1739072751282,0.2055591,97281.0,97280.0,0.3608]
[1739072751988,0.003,97284.0,97280.0,0.3608]
[1739072753279,0.005,97284.0,97280.0,0.3608]
[1739072753480,0.002,97281.0,97280.0,0.3608]
[1739072753987,0.2055549,97283.0,97280.0,0.3608]
[1739072754886,0.002,97281.0,97280.0,0.3608]
[1739072755380,0.2055549,97283.0,97280.0,0.3608]
[1739072755687,0.2085549,97283.0,97280.0,0.3608]
[1739072756376,0.003,97283.0,97280.0,0.3608]
[1739072756689,0.2055588,97282.0,97280.0,0.3608]
[1739072757084,0.002,97281.0,97280.0,0.3608]
[1739072757583,0.2055588,97282.0,97280.0,0.3608]
[1739072758184,0.2055653,97279.0,97275.0,0.0001542]
[1739072758488,0.2055675,97277.0,97276.0,0.3608]
[1739072758686,0.3755675,97277.0,97275.0,0.0001542]
[1739072758993,0.3755675,97277.0,97267.0,0.3608]
[1739072758994,0.2055855,97269.0,97267.0,0.3608]
[1739072759189,0.3055855,97269.0,97267.0,0.3608]
[1739072759690,0.2055855,97269.0,97267.0,0.3608]
[1739072760386,0.2055855,97269.0,97265.0,0.3608]
[1739072761388,0.2055855,97269.0,97267.0,0.007]
[1739072761793,0.21599538,97269.0,97267.0,0.007]
[1739072761982,0.21599538,97269.0,97267.0,0.005]
[1739072762187,0.21599538,97269.0,97265.0,0.3628]
[1739072762383,0.21599538,97269.0,97265.0,0.3678]
[1739072762793,0.2055881,97268.0,97265.0,0.3678]
[1739072762994,0.2055881,97268.0,97265.0,0.3628]
[1739072763294,0.2055881,97268.0,97267.0,0.004]
[1739072764092,0.01028205,97277.0,97267.0,0.004]
[1739072764293,0.1,97277.0,97267.0,0.006]
[1739072764492,0.2055745,97274.0,97267.0,0.006]
[1739072764792,0.2055776,97273.0,97267.0,0.003]
[1739072764984,0.3055776,97273.0,97267.0,0.003]
[1739072765390,0.3055776,97273.0,97265.0,0.3638]
[1739072765593,0.3055776,97273.0,97267.0,0.003]
[1739072765887,0.1,97273.0,97267.0,0.003]
[1739072766094,0.2055816,97271.0,97267.0,0.004]
[1739072766285,0.1077015,97280.0,97267.0,0.001]
[1739072766492,0.205567,97278.0,97267.0,0.004]
[1739072766690,0.2055757,97274.0,97267.0,0.004]
[1739072766900,0.3055757,97274.0,97267.0,0.004]
[1739072767493,0.3055757,97274.0,97267.0,0.003]
[1739072767687,0.2955757,97274.0,97267.0,0.005]
[1739072767887,0.2955757,97274.0,97267.0,0.002]
[1739072768095,0.37100886,97280.0,97267.0,0.004]
[1739072768489,0.01020886,97280.0,97267.0,0.004]
[1739072768696,0.09,97280.0,97265.0,0.3608]
[1739072768900,0.09,97280.0,97267.0,0.003]
[1739072769408,0.2055655,97278.0,97267.0,0.003]
[1739072769600,0.2955655,97278.0,97265.0,0.3608]
[1739072769802,0.2055655,97278.0,97265.0,0.3608]
[1739072770492,0.2055655,97278.0,97273.0,0.3608]
[1739072771386,0.2055687,97277.0,97273.0,0.3608]
[1739072772100,0.001,97278.0,97273.0,0.3618]
[1739072772301,0.2055739,97274.0,97273.0,0.3618]
[1739072772801,0.2055739,97274.0,97273.0,0.3608]
[1739072773002,0.2055739,97274.0,97273.0,0.3628]
[1739072773704,0.3055739,97274.0,97273.0,0.3628]
[1739072774396,0.1,97274.0,97265.0,0.3608]
[1739072774593,0.2055908,97266.0,97265.0,0.3608]
[1739072774796,0.3055908,97266.0,97265.0,0.3608]
[1739072775000,0.2055908,97266.0,97265.0,0.3608]
[1739072775601,0.2055908,97266.0,97265.0,0.3638]
[1739072775793,0.2055908,97266.0,97265.0,0.3668]
[1739072777399,0.2055908,97266.0,97265.0,0.3648]
[1739072777593,0.21610218,97266.0,97265.0,0.3648]
[1739072777997,0.21610218,97266.0,97265.0,0.3668]
[1739072778597,0.21610218,97266.0,97265.0,0.3658]
[1739072778991,0.21610218,97266.0,97265.0,0.3618]
[1739072779198,0.21610218,97266.0,97265.0,0.3658]
[1739072779392,0.30610218,97266.0,97265.0,0.3658]
[1739072779598,0.42610218,97266.0,97265.0,0.0011542]
[1739072779793,0.21610218,97266.0,97265.0,0.0011542]
[1739072779991,0.31610218,97266.0,97265.0,0.0011542]
[1739072780594,0.31610218,97266.0,97265.0,0.0001542]
[1739072780792,0.31610218,97266.0,97265.0,0.0021542]
[1739072780995,0.21610218,97266.0,97265.0,0.002]
[1739072781207,0.21610218,97266.0,97265.0,0.006]
[1739072781408,0.30610218,97266.0,97265.0,0.006]
[1739072781704,0.30610218,97266.0,97265.0,0.004]
[1739072781909,0.21610218,97266.0,97265.0,0.005]
[1739072782312,0.21610218,97266.0,97265.0,0.004]
[1739072783099,0.2055908,97266.0,97265.0,0.004]
[1739072783298,0.3608,97281.0,97265.0,0.004]
[1739072783607,0.2055706,97276.0,97270.0,0.3608]
[1739072783808,0.2055706,97276.0,97271.0,0.0319]
[1739072784402,0.47146918,97281.0,97271.0,0.0319]
[1739072784607,0.2055781,97272.0,97271.0,0.0319]
[1739072785211,0.2955781,97272.0,97270.0,0.3608]
[1739072785406,0.2955781,97272.0,97271.0,0.001]
[1739072786001,0.2055781,97272.0,97271.0,0.001]
[1739072787113,0.2055869,97268.0,97262.0,0.031]
[1739072788313,0.2065869,97268.0,97262.0,0.036]
[1739072788709,0.2065869,97268.0,97262.0,0.039]
[1739072788913,0.2055923,97266.0,97262.0,0.039]
[1739072790010,0.01047664,97268.0,97262.0,0.034]
[1739072790219,0.205594,97265.0,97262.0,0.037]
[1739072790409,0.205594,97265.0,97262.0,0.04]
[1739072790606,0.205596,97264.0,97262.0,0.04]
[1739072791001,0.205596,97264.0,97262.0,0.034]
[1739072791211,0.205596,97264.0,97262.0,0.036]
[1739072791406,0.205596,97264.0,97262.0,0.04]
[1739072792816,0.21573864,97264.0,97262.0,0.035]
[1739072793007,0.21673864,97264.0,97262.0,0.042]
[1739072798308,0.21673864,97264.0,97262.0,0.011]
[1739072801912,0.01114264,97264.0,97262.0,0.011]
[1739072802222,0.001,97264.0,97262.0,0.011]
[1739072808929,0.2055972,97263.0,97262.0,0.011]
[1739072810019,0.2055972,97263.0,97262.0,0.004]
[1739072810225,0.2055972,97263.0,97262.0,0.005]
[1739072810531,0.2065972,97263.0,97262.0,0.013]
[1739072817236,0.2965972,97263.0,97262.0,0.013]
[1739072818536,0.2065972,97263.0,97262.0,0.013]
[1739072818835,0.2965972,97263.0,97262.0,0.013]
[1739072820539,0.2065972,97263.0,97262.0,0.013]
[1739072828946,0.001,97263.0,97262.0,0.013]
[1739072831430,0.001,97263.0,97262.0,0.3738]
[1739072832344,0.2055664,97278.0,97262.0,0.3738]
[1739072832536,0.21583688,97278.0,97277.0,0.3608]
[1739072832732,0.21583688,97278.0,97277.0,0.27721652]
[1739072835043,0.21683688,97278.0,97277.0,0.27721652]
[1739072835345,0.21683688,97278.0,97277.0,0.27821652]
[1739072835537,0.21583688,97278.0,97277.0,0.27821652]
[1739072835739,0.21683688,97278.0,97277.0,0.27821652]
[1739072840446,0.21683688,97278.0,97277.0,0.3618]
[1739072842549,0.001,97278.0,97277.0,0.3618]
[1739072843851,0.2065655,97278.0,97277.0,0.3618]
[1739072845653,0.001,97278.0,97277.0,0.3618]
[1739072875072,0.00015392,97286.0,97284.0,0.2055518]
[1739072875073,1e-08,97286.0,97284.0,0.2055518]
[1739072875270,1e-08,97286.0,97285.0,0.4533]
[1739072876271,0.00300001,97286.0,97285.0,0.4533]
[1739072876777,1e-08,97286.0,97285.0,0.4533]
[1739072877266,1e-08,97286.0,97285.0,0.4553]
[1739072881696,0.2363821,97318.0,97294.0,0.2055303]
[1739072881979,0.2710838,97317.0,97316.0,0.3608]
[1739072882372,0.28143755,97317.0,97316.0,0.3608]
[1739072882975,0.29243755,97317.0,97316.0,0.3608]
[1739072883679,0.29243755,97317.0,97316.0,0.3618]
[1739072883882,0.29243755,97317.0,97316.0,0.3628]
[1739072886477,0.02135375,97317.0,97316.0,0.3628]
[1739072886679,0.01035375,97317.0,97316.0,0.3608]
[1739072886872,0.011,97317.0,97316.0,0.3628]
[1739072888180,0.009,97317.0,97316.0,0.3618]
[1739072888380,0.011,97317.0,97316.0,0.3628]
[1739072888677,0.011,97317.0,97316.0,0.3618]
[1739072888886,0.01,97317.0,97316.0,0.3628]
[1739072889086,0.0202865,97317.0,97316.0,0.3628]
[1739072898291,0.0122865,97317.0,97316.0,0.3618]
[1739072898593,0.0142865,97317.0,97316.0,0.3608]
[1739072898893,0.0162865,97317.0,97316.0,0.3608]
[1739072907498,0.3217696,97317.0,97316.0,0.3608]
[1739072908005,0.2217696,97317.0,97316.0,0.3608]
[1739072910904,0.0162865,97317.0,97316.0,0.3608]
[1739072915311,0.0162865,97317.0,97307.0,0.0640643]
[1739072915605,0.1062865,97317.0,97316.0,0.3608]
[1739072916904,0.1985865,97317.0,97316.0,0.3608]
[1739072917098,0.2025865,97317.0,97316.0,0.3608]
[1739072917499,0.1925865,97317.0,97316.0,0.3608]
[1739072917698,0.1885865,97317.0,97316.0,0.3608]
[1739072917899,0.1925865,97317.0,97316.0,0.3608]
[1739072919511,0.0162865,97317.0,97316.0,0.3608]
[1739072920706,0.1062865,97317.0,97316.0,0.3608]
[1739072920906,0.0162865,97317.0,97316.0,0.3608]
[1739072921613,0.1062865,97317.0,97316.0,0.3608]
[1739072926009,0.2311665,97317.0,97316.0,0.3608]
[1739072930217,0.2054885,97315.0,97311.0,0.0305]
[1739072930422,0.2311665,97317.0,97311.0,0.0305]
[1739072930423,0.1411665,97317.0,97311.0,0.0305]
[1739072930725,0.2054896,97314.0,97311.0,0.0305]
[1739072931115,0.1411665,97317.0,97311.0,0.0305]
[1739072931311,0.4366496,97317.0,97316.0,0.3608]
[1739072933022,0.3426496,97317.0,97316.0,0.3608]
[1739072933222,0.4326496,97317.0,97316.0,0.3608]
[1739072933817,0.4366496,97317.0,97316.0,0.3608]
[1739072934518,0.3117696,97317.0,97316.0,0.3608]
[1739072934719,0.4342896,97317.0,97316.0,0.3608]
[1739072937425,0.7950896,97317.0,97307.0,0.0001542]
[1739072937627,0.2055211,97299.0,97298.0,0.3608]
[1739072938322,0.3055211,97299.0,97298.0,0.3608]
[1739072938828,0.2055211,97299.0,97298.0,0.3608]
[1739072939021,0.2055211,97299.0,97298.0,0.3628]
[1739072939731,0.2055211,97299.0,97298.0,0.3678]
[1739072940315,0.21581784,97299.0,97298.0,0.3678]
[1739072951132,0.01024418,97302.0,97298.0,0.3678]
[1739072951328,0.11652,97305.0,97299.0,0.0332]
[1739072951635,0.2055116,97304.0,97299.0,0.0332]
[1739072952037,0.07423325,97308.0,97299.0,0.0332]
[1739072952341,0.07423325,97308.0,97307.0,0.3608]
[1739072952638,0.01032315,97308.0,97307.0,0.3608]
[1739072954328,0.01132315,97308.0,97307.0,0.3608]
[1739072962939,0.01132315,97308.0,97307.0,0.7216]
[1739072965944,0.21682545,97308.0,97307.0,0.7216]
[1739072972645,0.01132315,97308.0,97307.0,0.7216]
[1739072981060,0.0011542,97308.0,97307.0,0.7216]
[1739072983756,0.01026347,97328.0,97307.0,1.0216]
[1739072984062,0.01026347,97328.0,97306.0,0.07483858]
[1739072984063,0.2054598,97328.0,97327.0,0.7216]
[1739072984850,0.2164598,97328.0,97327.0,0.7216]
[1739072985553,0.2144598,97328.0,97327.0,0.7216]
[1739072985773,0.2164598,97328.0,97327.0,0.7216]
[1739072986365,0.007,97328.0,97327.0,0.7216]
[1739072986771,0.007,97328.0,97327.0,0.3608]
[1739072988463,0.005,97328.0,97327.0,0.3608]
[1739072988666,0.006,97328.0,97327.0,0.3608]
[1739072989363,0.004,97328.0,97327.0,0.3608]
[1739072990473,0.0015419,97337.0,97327.0,0.3608]
[1739072990663,0.0015419,97337.0,97336.0,0.3608]
[1739072991672,0.0025419,97337.0,97336.0,0.3608]
[1739072992662,0.0095419,97337.0,97336.0,0.3608]
[1739072993369,0.0095419,97337.0,97336.0,0.3618]
[1739072995275,0.2149827,97337.0,97336.0,0.3618]
[1739072997267,0.2149827,97337.0,97336.0,0.001]
[1739072997669,0.22509729,97337.0,97336.0,0.001]
[1739072998169,0.2054788,97319.0,97318.0,0.00015412]
[1739072999361,0.2054788,97319.0,97318.0,0.00115412]
[1739073000877,0.2055253,97297.0,97296.0,0.3608]
[1739073001385,0.2055121,97304.0,97296.0,0.3608]
[1739073001575,0.2054962,97311.0,97303.0,0.3608]
[1739073001784,0.10168,97323.0,97308.0,0.3608]
[1739073001785,0.2054992,97310.0,97308.0,0.3608]
[1739073003588,0.2054992,97310.0,97308.0,0.3658]
[1739073004591,0.2054992,97310.0,97308.0,0.3688]
[1739073005895,0.00015385,97317.0,97312.0,0.2054928]
[1739073006094,0.00015385,97317.0,97316.0,0.3608]
[1739073008298,0.00015385,97317.0,97316.0,0.3618]
[1739073008996,0.00015385,97317.0,97316.0,0.3638]
[1739073011202,0.2054684,97324.0,97317.0,0.2054826]
[1739073011494,0.2054684,97324.0,97323.0,0.3608]
[1739073012503,0.2064684,97324.0,97323.0,0.3608]
[1739073018104,0.001,97324.0,97323.0,0.3608]
[1739073018404,0.001,97324.0,97323.0,0.4578]
[1739073027100,0.001,97324.0,97323.0,0.3608]
[1739073027308,0.001,97324.0,97320.0,0.3608]
[1739073027309,0.2054746,97321.0,97320.0,0.3608]
[1739073030206,0.21562771,97321.0,97320.0,0.3608]
[1739073037720,0.205458,97329.0,97320.0,0.3608]
[1739073038020,0.205458,97329.0,97328.0,0.3608]
[1739073038319,0.300418,97329.0,97328.0,0.3608]
[1739073040117,0.303418,97329.0,97328.0,0.3608]
[1739073041115,0.208458,97329.0,97328.0,0.3608]
[1739073043314,0.003,97329.0,97328.0,0.3608]
[1739073048313,0.10349562,97338.0,97328.0,0.5662589]
[1739073048511,0.10349562,97338.0,97337.0,0.3608]
[1739073049812,0.10349562,97338.0,97337.0,0.3618]
[1739073050016,0.1004,97338.0,97337.0,0.3618]
[1739073050706,0.0934,97338.0,97337.0,0.3618]
[1739073050923,0.1004,97338.0,97337.0,0.3628]
[1739073055315,0.007,97338.0,97337.0,0.3628]
[1739073058433,0.2054144,97350.0,97337.0,0.3628]
[1739073058628,0.09148,97349.0,97346.0,0.3608]
[1739073058824,0.2054184,97348.0,97346.0,0.3608]
[1739073059928,0.2054184,97348.0,97346.0,0.3618]
[1739073060327,0.2054184,97348.0,97346.0,0.3628]
[1739073060530,0.2124184,97348.0,97346.0,0.3628]
[1739073061433,0.22287707,97348.0,97346.0,0.3628]
[1739073061631,0.01745867,97348.0,97346.0,0.3628]
[1739073066128,0.01045867,97348.0,97346.0,0.3618]
[1739073066329,0.2054079,97353.0,97346.0,0.3618]
[1739073066529,0.2054079,97353.0,97346.0,0.3608]
[1739073066732,0.09068,97357.0,97346.0,0.3618]
[1739073066932,0.2054038,97355.0,97346.0,0.3618]
[1739073067127,0.2054038,97355.0,97354.0,0.3608]
[1739073069335,0.2054038,97355.0,97354.0,0.3618]
[1739073069536,0.2054038,97355.0,97354.0,0.3628]
[1739073072540,0.2054038,97355.0,97354.0,0.002]
[1739073073043,0.2993038,97355.0,97354.0,0.002]
[1739073073640,0.5293038,97355.0,97354.0,0.002]
[1739073073843,0.2993038,97355.0,97354.0,0.002]
[1739073074046,0.5293038,97355.0,97354.0,0.002]
[1739073074438,0.5293038,97355.0,97346.0,0.3608]
[1739073074439,0.2054196,97347.0,97346.0,0.3608]
[1739073080738,0.2156549,97347.0,97346.0,0.3608]
[1739073082242,0.3033349,97347.0,97346.0,0.3608]
[1739073082540,0.2054359,97340.0,97338.0,0.00015412]
[1739073083943,0.2064359,97340.0,97338.0,0.00015412]
[1739073084350,0.2074359,97340.0,97338.0,0.00015412]
[1739073084953,0.08724,97339.0,97338.0,0.00015412]
[1739073085947,0.08824,97339.0,97338.0,0.00015412]
[1739073086541,0.088,97339.0,97338.0,0.00015412]
[1739073087647,0.089,97339.0,97338.0,0.00015412]
[1739073091852,0.179,97339.0,97338.0,0.00015412]
[1739073092156,0.2054677,97324.0,97323.0,0.3608]
[1739073093648,0.2915077,97324.0,97323.0,0.3608]
[1739073093854,0.2915077,97324.0,97323.0,0.3628]
[1739073094055,0.2915077,97324.0,97323.0,0.3668]
[1739073096556,0.30175789,97324.0,97323.0,0.3668]
[1739073097056,0.30175789,97324.0,97323.0,0.3678]
[1739073097256,0.30175789,97324.0,97323.0,0.3658]
[1739073097557,0.30175789,97324.0,97323.0,0.3678]
[1739073098260,0.30175789,97324.0,97323.0,0.3628]
[1739073098560,0.21571789,97324.0,97323.0,0.3678]
[1739073099966,0.21571789,97324.0,97323.0,0.3698]
[1739073106454,0.21571789,97324.0,97323.0,0.3668]
[1739073106755,0.21571789,97324.0,97323.0,0.3678]
[1739073107151,0.01025019,97324.0,97323.0,0.3688]
[1739073107353,0.00015412,97333.0,97323.0,0.3688]
[1739073107553,0.00015412,97333.0,97332.0,0.3608]
[1739073107754,0.01048142,97333.0,97332.0,0.3608]
[1739073107957,0.00015412,97333.0,97332.0,0.3608]
[1739073109856,0.00015412,97333.0,97332.0,0.3628]
[1739073110063,0.2054217,97346.0,97333.0,0.2054471]
[1739073110258,0.2054217,97346.0,97345.0,0.3608]
[1739073110562,0.1053224,97349.0,97345.0,0.3608]
[1739073110856,0.09528342,97351.0,97346.0,0.0614]
[1739073111164,0.01016342,97351.0,97346.0,0.0614]
[1739073111355,0.2054074,97353.0,97346.0,0.0614]
[1739073112155,0.205413,97350.0,97346.0,0.0614]
[1739073112355,0.09567595,97357.0,97346.0,0.0614]
[1739073112557,0.2054184,97348.0,97346.0,0.0614]
[1739073113159,0.2054184,97348.0,97346.0,0.0624]
[1739073113365,0.2054184,97348.0,97347.0,0.0306]
[1739073115355,0.2054212,97346.0,97345.0,0.36212]
[1739073115561,0.2054212,97346.0,97345.0,0.3608]
[1739073115960,0.0513535,97350.0,97343.0,0.3608]
[1739073116155,0.2054254,97344.0,97343.0,0.3608]
[1739073117055,0.3,97344.0,97305.0,0.3608]
[1739073117254,0.2054845,97316.0,97315.0,0.0304]
[1739073117456,0.2905645,97316.0,97315.0,0.0304]
[1739073119373,0.2905645,97316.0,97315.0,0.0364]
[1739073119870,0.2905645,97316.0,97315.0,0.0454]
[1739073121766,0.2054845,97316.0,97315.0,0.0454]
[1739073122765,0.20547,97323.0,97315.0,0.0454]
[1739073122971,0.20547,97323.0,97322.0,0.3608]
[1739073123162,0.29055,97323.0,97322.0,0.3608]
[1739073124270,0.29055,97323.0,97322.0,0.3648]
[1739073126071,0.29055,97323.0,97322.0,0.3718]
[1739073127069,0.29055,97323.0,97322.0,0.011]
[1739073128467,0.29055,97323.0,97322.0,0.004]
[1739073128664,0.29055,97323.0,97322.0,0.01]
[1739073128866,0.29055,97323.0,97322.0,0.006]
[1739073129066,0.29055,97323.0,97322.0,0.009]
[1739073129270,0.29055,97323.0,97322.0,0.003]
[1739073129470,0.29055,97323.0,97322.0,0.005]
[1739073129669,0.29055,97323.0,97322.0,0.008]
[1739073131771,0.20547,97323.0,97322.0,0.007]